fUSD/lending_fUSD_20250820
["ID","MTS","AMOUNT","RATE_DAILY","PERIOD"]
[380369147,1755707451226,-689.144136,0.00022,7]
[380369148,1755707451237,-689.144136,0.00022,7]
[380369149,1755707451246,-443.804494,0.00022,7]
[380369150,1755707451260,-689.144129,0.00022,7]
[380369151,1755707451270,-443.804494,0.00022,7]
[380369152,1755707451280,-443.804494,0.00022,7]
[380369153,1755707451290,-7205.897011,0.00022,7]
[380369154,1755707451300,-443.804492,0.00022,7]
[380369155,1755707451310,-155.125272,0.00022,7]
[380369156,1755707451322,-7205.897011,0.00022,7]
[380369157,1755707451332,-151.0,0.00022,7]
[380369158,1755707451342,-155.125272,0.00022,7]
[380369159,1755707451351,-7205.897011,0.00022,7]
[380369160,1755707451361,-151.0,0.00022,7]
[380369161,1755707451370,-548.993428,0.00022,7]
[380369162,1755707451380,-299.778001,0.00022,7]
[380369163,1755707451389,-155.125272,0.00022,7]
[380369164,1755707451401,-151.0,0.00022,7]
[380369165,1755707451411,-7205.897018,0.00022,7]
[380369166,1755707451420,-155.125265,0.00022,7]
[380369167,1755707451430,-548.993428,0.00022,7]
[380369168,1755707451440,-299.778001,0.00022,7]
[380369169,1755707451449,-158.048643,0.00022,7]
[380369170,1755707451460,-548.993428,0.00022,7]
[380369171,1755707451472,-299.778001,0.00022,7]
[380369172,1755707451481,-158.048643,0.00022,7]
[380369173,1755707451490,-329.066521,0.00022,7]
[380369174,1755707451500,-548.993429,0.00022,7]
[380369175,1755707451510,-299.778003,0.00022,7]
[380369176,1755707451520,-329.066521,0.00022,7]
[380369177,1755707451529,-158.048643,0.00022,7]
[380369178,1755707451538,-158.04864,0.00022,7]
[380369179,1755707451547,-329.066521,0.00022,7]
[380369180,1755707451557,-185.0,0.0002201,2]
[380369181,1755707451567,-1000.0,0.00022012,2]
[380369182,1755707451576,-1000.0,0.00022049,2]
[380369183,1755707451585,-185.0,0.00022072,2]
[380369184,1755707451595,-349.36185289,0.00022079,2]
[380369185,1755707451604,-287.61899177,0.00022085,2]
[380369186,1755707451613,-334.5472959,0.00022085,2]
[380369187,1755707451622,-1000.0,0.00022087,2]
[380369188,1755707451632,-185.0,0.00022091,2]
[380369189,1755707451641,-484.05654316,0.000221,2]
[380369190,1755707451651,-2222.22,0.000221,2]
[380369191,1755707451660,-235.23136966,0.0002211,2]
[380369192,1755707451669,-1000.0,0.00022124,2]
[380369193,1755707451679,-1000.0,0.00022162,2]
[380369194,1755707451688,-1000.0,0.00022199,2]
[380369195,1755707451697,-1000.0,0.00022237,2]
[380369196,1755707451706,-1000.0,0.00022274,2]
[380369197,1755707451715,-1000.0,0.00022312,2]
[380369198,1755707451725,-1000.0,0.00022349,2]
[380369199,1755707451734,-185.0,0.00022351,2]
[380369200,1755707451743,-2233.6646124,0.00022356,2]
[380369201,1755707451752,-4500.0,0.00022356,2]
[380369202,1755707451761,-151.0,0.0002236,2]
[380369203,1755707451771,-1000.0,0.00022387,2]
[380369204,1755707451779,-803.55957022,0.00022388,2]
[380369205,1755707451789,-1000.0,0.00022424,2]
[380369206,1755707451798,-1000.0,0.00022462,2]
[380369207,1755707451807,-784.28053414,0.00022484,2]
[380369208,1755707451816,-200.0,0.00022485,2]
[380369209,1755707451825,-300.0,0.00022499,2]
[380369210,1755707451834,-1000.0,0.000225,2]
[380369211,1755707451843,-2900.0,0.000225,15]
[380369212,1755707451859,-34736.25297666,0.000225,2]
[380369213,1755707451869,-212.04014818,0.000225,7]
[380369214,1755707451878,-185.0,0.00022515,2]
[380369215,1755707451887,-1000.0,0.00022537,2]
[380369216,1755707451896,-185.0,0.00022538,2]
[380369217,1755707451905,-1000.0,0.00022575,2]
[380369218,1755707451915,-151.0,0.00022601,2]
[380369219,1755707451924,-496.66,0.00022603,2]
[380369220,1755707451933,-1000.0,0.00022612,2]
[380369221,1755707451944,-21022.77453159,0.00022632,2]
[380369222,1755707451962,-151.0,0.00022632,7]
[380369223,1755707451972,-151.0,0.00022632,7]
[380369224,1755707451981,-254.10269,0.00022632,7]
[380369225,1755707451991,-151.0,0.00022632,7]
[380369226,1755707452000,-343.149313,0.00022632,7]
[380369227,1755707452010,-343.149313,0.00022632,7]
[380369228,1755707452019,-151.0,0.00022632,7]
[380369229,1755707452028,-343.149313,0.00022632,7]
[380369230,1755707452037,-343.149313,0.00022632,7]
[380369231,1755707452047,-689.488137,0.00022632,7]
[380369232,1755707452057,-689.488137,0.00022632,7]
[380369233,1755707452066,-151.0,0.00022632,7]
[380369234,1755707452076,-689.488137,0.00022632,7]
[380369235,1755707452085,-168.292773,0.00022632,7]
[380369236,1755707452095,-168.292773,0.00022632,7]
[380369237,1755707452104,-689.488137,0.00022632,7]
[380369238,1755707452114,-168.292773,0.00022632,7]
[380369239,1755707452123,-168.292773,0.00022632,7]
[380369240,1755707452133,-151.0,0.00022632,7]
[380369241,1755707452142,-336.151469,0.00022632,7]
[380369242,1755707452151,-336.151469,0.00022632,7]
[380369243,1755707452160,-336.151469,0.00022632,7]
[380369244,1755707452170,-336.151469,0.00022632,7]
[380369245,1755707452180,-151.0,0.00022632,7]
[380369246,1755707452190,-151.0,0.00022632,7]
[380369247,1755707452199,-2172.107414,0.00022632,7]
[380369248,1755707452209,-2172.107414,0.00022632,7]
[380369249,1755707452219,-2172.107414,0.00022632,7]
[380369250,1755707452230,-2172.107414,0.00022632,7]
[380369251,1755707452239,-151.0,0.00022632,7]
[380369252,1755707452249,-1000.0,0.0002265,2]
[380369253,1755707452258,-185.0,0.00022686,2]
[380369254,1755707452268,-1000.0,0.00022687,2]
[380369255,1755707452277,-2000.0,0.000227,2]
[380369256,1755707452287,-8872.36,0.000227,7]
[380369257,1755707452296,-511.92211784,0.0002271,2]
[380369258,1755707452305,-185.0,0.00022714,2]
[380369259,1755707452314,-1000.0,0.00022725,2]
[380369260,1755707452324,-1000.0,0.00022762,2]
[380369261,1755707452333,-1000.0,0.000228,2]
[380369262,1755707452342,-600.0,0.00022822,2]
[380369263,1755707452351,-1000.0,0.00022837,2]
[380369264,1755707452361,-185.0,0.00022856,2]
[380369265,1755707452370,-167.72,0.00022866,2]
[380369266,1755707452380,-1000.0,0.00022875,2]
[380369267,1755707452389,-1300.0,0.00022904,2]
[380369268,1755707452398,-500.0,0.00022904,2]
[380369269,1755707452407,-800.0,0.00022904,2]
[380369270,1755707452416,-4384.71469546,0.00022904,2]
[380369271,1755707452425,-151.0,0.00022908,2]
[380369272,1755707452435,-1000.0,0.00022912,2]
[380369273,1755707452444,-314.16,0.00022948,2]
[380369274,1755707452454,-1000.0,0.0002295,2]
[380369275,1755707452463,-784.28053414,0.00022982,2]
[380369276,1755707452473,-1000.0,0.00022987,2]
[380369277,1755707452483,-250.0,0.00023,7]
[380369278,1755707452492,-450.0,0.00023,2]
[380369279,1755707452501,-843.97594471,0.00023,3]
[380369280,1755707452510,-500.0,0.00023,7]
[380369281,1755707452520,-500.0,0.00023,7]
[380369282,1755707452529,-500.0,0.00023,7]
[380369283,1755707452540,-500.0,0.00023,7]
[380369284,1755707452549,-500.0,0.00023,7]
[380369285,1755707452559,-500.0,0.00023,7]
[380369286,1755707452568,-500.0,0.00023,7]
[380369287,1755707452577,-500.0,0.00023,7]
[380369288,1755707452586,-500.0,0.00023,7]
[380369289,1755707452595,-500.0,0.00023,7]
[380369290,1755707452605,-500.0,0.00023,7]
[380369291,1755707452614,-500.0,0.00023,7]
[380369292,1755707452623,-500.0,0.00023,7]
[380369293,1755707452633,-500.0,0.00023,7]
[380369294,1755707452643,-500.0,0.00023,7]
[380369295,1755707452652,-500.0,0.00023,7]
[380369296,1755707452661,-500.0,0.00023,7]
[380369297,1755707452670,-500.0,0.00023,7]
[380369298,1755707452679,-500.0,0.00023,7]
[380369299,1755707452688,-500.0,0.00023,7]
[380369300,1755707452698,-500.0,0.00023,7]
[380369301,1755707452707,-500.0,0.00023,7]
[380369302,1755707452717,-500.0,0.00023,7]
[380369303,1755707452727,-500.0,0.00023,7]
[380369304,1755707452736,-613.32,0.00023,7]
[380369305,1755707452745,-500.0,0.00023,7]
[380369306,1755707452754,-500.0,0.00023,7]
[380369307,1755707452763,-500.0,0.00023,7]
[380369308,1755707452772,-272.19,0.00023,7]
[380369309,1755707452781,-620.12205736,0.00023,7]
[380369310,1755707452791,-1000.0,0.00023,14]
[380369311,1755707452800,-430.42501957,0.00023,2]
[380369312,1755707452809,-165.0,0.00023,5]
[380369313,1755707452818,-4000.0,0.00023,4]
[380369314,1755707452827,-160.0,0.00023,3]
[380369315,1755707452837,-185.0,0.0002302,2]
[380369316,1755707452848,-1000.0,0.00023025,2]
[380369317,1755707452857,-1000.0,0.00023062,2]
[380369318,1755707452866,-229.0,0.000231,2]
[380369319,1755707452876,-187.88490126,0.000231,2]
[380369320,1755707452885,-1000.0,0.000231,2]
[380369321,1755707452894,-185.0,0.00023105,2]
[380369322,1755707452904,-185.0,0.00023119,2]
[380369323,1755707452913,-185.0,0.00023134,2]
[380369324,1755707452922,-1000.0,0.00023138,2]
[380369325,1755707452931,-1000.0,0.00023175,2]
[380369326,1755707452940,-185.0,0.00023176,2]
[380369327,1755707452951,-781.0,0.00023178,2]
[380369328,1755707452961,-784.28053414,0.00023182,2]
[380369329,1755707452971,-51052.10017431,0.000232,2]
[380369330,1755707452981,-194067.2,0.000232,7]
[380369331,1755707452992,-1000.0,0.00023213,2]
[380369332,1755707453002,-252.44,0.00023245,2]
[380369333,1755707453011,-1000.0,0.0002325,2]
[380369334,1755707453021,-852.48674278,0.00023279,2]
[380369335,1755707453033,-578.33457555,0.00023287,2]
[380369336,1755707453043,-1960.65898791,0.00023288,2]
[380369337,1755707453052,-252.43,0.00023295,2]
[380369338,1755707453062,-500.0,0.000233,2]
[380369339,1755707453071,-2222.22,0.0002334,2]
[380369340,1755707453081,-185.0,0.00023367,2]
[380369341,1755707453091,-600.0,0.0002337,2]
[380369342,1755707453101,-185.0,0.00023449,2]
[380369343,1755707453110,-298.26089446,0.00023454,2]
[380369344,1755707453120,-346.92554585,0.00023454,2]
[380369345,1755707453131,-747.8093786,0.00023455,2]
[380369346,1755707453141,-217.0,0.0002348,2]
[380369347,1755707453150,-216.0,0.0002348,2]
[380369348,1755707453159,-784.28053414,0.00023487,2]
[380369349,1755707453169,-300.0,0.00023499,2]
[380369350,1755707453180,-656.27,0.000235,14]
[380369351,1755707453190,-200.0,0.000235,2]
[380369352,1755707453199,-200.0,0.0002351,7]
[380369353,1755707453209,-1000.0,0.00023527,2]
[380369354,1755707453218,-300.0,0.00023561,2]
[380369355,1755707453228,-2000.0,0.00023561,2]
[380369356,1755707453237,-292684.77,0.00023562,7]
[380369357,1755707453246,-185.0,0.00023624,2]
[380369358,1755707453255,-185.0,0.00023672,2]
[380369359,1755707453264,-185.0,0.00023704,2]
[380369360,1755707453273,-1000.0,0.00023726,2]
[380369361,1755707453282,-784.28053416,0.0002374,2]
[380369362,1755707453293,-9776.58071388,0.00023748,3]
[380369363,1755707453302,-185.0,0.00023839,2]
[380369364,1755707453312,-300.0,0.00023869,2]
[380369365,1755707453321,-2000.0,0.0002388,2]
[380369366,1755707453330,-600.0,0.00023918,2]
[380369367,1755707453340,-36169.7526611,0.00023929,2]
[380369368,1755707453349,-3440.2106572,0.00023929,2]
[380369369,1755707453358,-145135.4446677,0.00023929,2]
[380369370,1755707453367,-300.0,0.0002397,2]
[380369371,1755707453376,-700.0,0.0002397,2]
[380369372,1755707453385,-2699.05050075,0.00023989,12]
[380369373,1755707453394,-151.0,0.00023999,3]
[380369374,1755707453403,-156.587,0.00023999,3]
[380369375,1755707453412,-162.380719,0.00023999,3]
[380369376,1755707453421,-168.3888056,0.00023999,3]
[380369377,1755707453430,-174.61919141,0.00023999,3]
[380369378,1755707453445,-181.08010149,0.00023999,3]
[380369379,1755707453454,-187.78006525,0.00023999,3]
[380369380,1755707453463,-194.72792766,0.00023999,3]
[380369381,1755707453472,-201.93286099,0.00023999,3]
[380369382,1755707453483,-209.40437684,0.00023999,3]
[380369383,1755707453492,-217.15233878,0.00023999,3]
[380369384,1755707453501,-270.80929083,0.00023999,3]
[380369385,1755707453510,-1300.0,0.00024,2]
[380369386,1755707453519,-500.0,0.00024,2]
[380369387,1755707453528,-800.0,0.00024,2]
[380369388,1755707453537,-4000.0,0.00024,4]
[380369389,1755707453547,-24569.21461372,0.00024,3]
[380369390,1755707453556,-162.7,0.00024,8]
[380369391,1755707453565,-500.0,0.00024,2]
[380369392,1755707453574,-3600.0,0.00024,25]
[380369393,1755707453583,-7500.0,0.00024,2]
[380369394,1755707453592,-160.83801656,0.00024,3]
[380369395,1755707453601,-386.0,0.00024,2]
[380369396,1755707453610,-933.40618599,0.00024,20]
[380369397,1755707453620,-200.0,0.00024,2]
[380369398,1755707453628,-151.0,0.00024,2]
[380369399,1755707453637,-217.0,0.00024,2]
[380369400,1755707453647,-26059.80761522,0.00024,2]
[380369401,1755707453656,-241.4515268,0.00024,2]
[380369402,1755707453665,-503.509045,0.00024,2]
[380369403,1755707453674,-458.46930693,0.00024,3]
[380369404,1755707453683,-216.0,0.00024,2]
[380369405,1755707453692,-2500.94707,0.00024,2]
[380369406,1755707453701,-843.97594471,0.00024,7]
[380369407,1755707453711,-5369.04169301,0.00024,5]
[380369408,1755707453720,-165.7,0.00024,10]
[380369409,1755707453729,-1000.0,0.00024,2]
[380369410,1755707453738,-843.97594471,0.00024,7]
[380369411,1755707453747,-164.0425238,0.00024,2]
[380369412,1755707453756,-300.42,0.00024022,7]
[380369413,1755707453766,-500.0,0.00024056,2]
[380369414,1755707453775,-500.0,0.00024056,2]
[380369415,1755707453784,-500.0,0.00024056,2]
[380369416,1755707453794,-500.0,0.00024056,2]
[380369417,1755707453803,-500.0,0.00024056,2]
[380369418,1755707453812,-500.0,0.00024056,2]
[380369419,1755707453822,-500.0,0.00024056,2]
[380369420,1755707453832,-200.0,0.000241,7]
[380369421,1755707453841,-5271.09078373,0.000241,2]
[380369422,1755707453851,-8872.36,0.000241,7]
[380369423,1755707453860,-394.0,0.0002411,7]
[380369424,1755707453870,-500.0,0.00024114,2]
[380369425,1755707453879,-394.0,0.00024164,7]
[380369426,1755707453888,-161.0,0.00024164,7]
[380369427,1755707453897,-458.46930693,0.000242,7]
[380369428,1755707453907,-396.132133,0.000242,7]
[380369429,1755707453916,-151.0,0.000242,7]
[380369430,1755707453925,-396.132133,0.000242,7]
[380369431,1755707453935,-290.645003,0.000242,7]
[380369432,1755707453947,-630.957026,0.000242,7]
[380369433,1755707453957,-396.132133,0.000242,7]
[380369434,1755707453966,-151.0,0.000242,7]
[380369435,1755707453977,-630.957026,0.000242,7]
[380369436,1755707453986,-396.132133,0.000242,7]
[380369437,1755707453997,-630.957026,0.000242,7]
[380369438,1755707454006,-151.0,0.000242,7]
[380369439,1755707454017,-630.957026,0.000242,7]
[380369440,1755707454029,-154.229426,0.000242,7]
[380369441,1755707454039,-151.0,0.000242,7]
[380369442,1755707454049,-151.0,0.000242,7]
[380369443,1755707454196,-154.229426,0.000242,7]
[380369444,1755707454206,-151.0,0.000242,7]
[380369445,1755707454216,-151.0,0.000242,7]
[380369446,1755707454227,-154.229426,0.000242,7]
[380369447,1755707454238,-151.0,0.000242,7]
[380369448,1755707454248,-154.229426,0.000242,7]
[380369449,1755707454258,-249.28694,0.000242,7]
[380369450,1755707454268,-154.863131,0.000242,7]
[380369451,1755707454277,-249.28694,0.000242,7]
[380369452,1755707454291,-151.140946,0.000242,7]
[380369453,1755707454302,-249.28694,0.000242,7]
[380369454,1755707454312,-249.28694,0.000242,7]
[380369455,1755707454323,-153.58019,0.000242,7]
[380369456,1755707454332,-151.0,0.000242,7]
[380369457,1755707454342,-151.0,0.000242,7]
[380369458,1755707454351,-299.855054,0.000242,7]
[380369459,1755707454361,-151.0,0.000242,7]
[380369460,1755707454370,-299.855054,0.000242,7]
[380369461,1755707454380,-299.855054,0.000242,7]
[380369462,1755707454390,-299.855054,0.000242,7]
[380369463,1755707454400,-496.375526,0.000242,7]
[380369464,1755707454409,-496.375526,0.000242,7]
[380369465,1755707454418,-496.375526,0.000242,7]
[380369466,1755707454428,-496.375526,0.000242,7]
[380369467,1755707454437,-174.10078,0.000242,7]
[380369468,1755707454447,-174.10078,0.000242,7]
[380369469,1755707454456,-174.10078,0.000242,7]
[380369470,1755707454466,-174.10078,0.000242,7]
[380369471,1755707454475,-541.977962,0.000242,7]
[380369472,1755707454485,-541.977962,0.000242,7]
[380369473,1755707454495,-541.977962,0.000242,7]
[380369474,1755707454505,-541.977962,0.000242,7]
[380369475,1755707454514,-1000.0,0.000242,2]
[380369476,1755707454523,-3615.6806729,0.0002421,2]
[380369477,1755707454532,-412.60509563,0.0002421,2]
[380369478,1755707454542,-150.21,0.00024218,2]
[380369479,1755707454551,-224.0,0.0002428,2]
[380369480,1755707454560,-350.60082641,0.000243,7]
[380369481,1755707454570,-26855.1887,0.000243,2]
[380369482,1755707454580,-1500.0,0.000243,2]
[380369483,1755707454589,-1000.0,0.000243,2]
[380369484,1755707454599,-500.40119413,0.00024399,2]
[380369485,1755707454609,-500.0,0.00024399,2]
[380369486,1755707454618,-666.0,0.00024399,2]
[380369487,1755707454628,-1000.0,0.000244,2]
[380369488,1755707454638,-600.0,0.00024466,2]
[380369489,1755707454647,-1749.2,0.000245,7]
[380369490,1755707454657,-7500.0,0.000245,2]
[380369491,1755707454667,-3208.24571502,0.0002458,2]
[380369492,1755707454677,-296.2789808,0.0002458,2]
[380369493,1755707454687,-194067.2,0.000246,7]
[380369494,1755707454696,-1000.0,0.00024604,2]
[380369495,1755707454706,-1000.0,0.00024604,2]
[380369496,1755707454717,-1000.0,0.00024604,2]
[380369497,1755707454726,-1000.0,0.00024604,2]
[380369498,1755707454736,-1000.0,0.00024604,2]
[380369499,1755707454746,-1000.0,0.00024604,2]
[380369500,1755707454756,-1000.0,0.00024604,2]
[380369501,1755707454766,-1000.0,0.00024616,2]
[380369502,1755707454777,-300.0,0.00024631,30]
[380369503,1755707454787,-2601.99998899,0.00024647,18]
[380369504,1755707454796,-584.15072465,0.0002465,2]
[380369505,1755707454806,-163.48590548,0.0002465,2]
[380369506,1755707454816,-150.0,0.00024655,2]
[380369507,1755707454825,-200.0,0.00024657,2]
[380369508,1755707454835,-791.54077658,0.00024657,2]
[380369509,1755707454844,-153.0,0.00024658,2]
[380369510,1755707454854,-153.0,0.00024658,2]
[380369511,1755707454864,-185.14408527,0.00024658,2]
[380369512,1755707454873,-1000.0,0.00024658,2]
[380369513,1755707454883,-1008.82647995,0.00024658,2]
[380369514,1755707454893,-1226.11218332,0.0002466,2]
[380369515,1755707454903,-1443.3978867,0.00024662,2]
[380369516,1755707454914,-1000.0,0.00024662,2]
[380369517,1755707454924,-1660.68359007,0.00024663,2]
[380369518,1755707454934,-1877.96929345,0.00024665,2]
[380369519,1755707454945,-2095.25499682,0.00024666,2]
[380369520,1755707454959,-2312.54070019,0.00024668,2]
[380369521,1755707454969,-2529.82640357,0.0002467,2]
[380369522,1755707454979,-666.0,0.00024679,2]
[380369523,1755707454989,-673562.79544233,0.0002468,7]
[380369524,1755707456470,-76044.94958367,0.0002468,7]
[380369525,1755707456480,-20033.3757976,0.0002468,7]
[380369526,1755707456491,-87893.8997034,0.0002468,7]
[380369527,1755707456501,-15461.6788786,0.0002468,7]
[380369528,1755707456511,-151.0,0.0002468,7]
[380369529,1755707456520,-210.721625,0.0002468,7]
[380369530,1755707456530,-151.0,0.0002468,7]
[380369531,1755707456539,-343.149313,0.0002468,7]
[380369532,1755707456549,-343.149313,0.0002468,7]
[380369533,1755707456559,-151.0,0.0002468,7]
[380369534,1755707456568,-343.149313,0.0002468,7]
[380369535,1755707456578,-343.149313,0.0002468,7]
[380369536,1755707456588,-689.488137,0.0002468,7]
[380369537,1755707456598,-689.488137,0.0002468,7]
[380369538,1755707456608,-689.488137,0.0002468,7]
[380369539,1755707456617,-300.914892,0.0002468,7]
[380369540,1755707456627,-168.292773,0.0002468,7]
[380369541,1755707456636,-168.292773,0.0002468,7]
[380369542,1755707456645,-689.488137,0.0002468,7]
[380369543,1755707456654,-168.292773,0.0002468,7]
[380369544,1755707456663,-168.292773,0.0002468,7]
[380369545,1755707456672,-151.0,0.0002468,7]
[380369546,1755707456681,-336.151469,0.0002468,7]
[380369547,1755707456691,-336.151469,0.0002468,7]
[380369548,1755707456700,-336.151469,0.0002468,7]
[380369549,1755707456710,-336.151469,0.0002468,7]
[380369550,1755707456721,-151.0,0.0002468,7]
[380369551,1755707456731,-2172.107414,0.0002468,7]
[380369552,1755707456740,-2172.107414,0.0002468,7]
[380369553,1755707456751,-151.0,0.0002468,7]
[380369554,1755707456760,-2172.107414,0.0002468,7]
[380369555,1755707456770,-151.0,0.0002468,7]
[380369556,1755707456779,-2172.107414,0.0002468,7]
[380369557,1755707456789,-2222.22,0.0002468,2]
[380369558,1755707456798,-1000.0,0.000247,7]
[380369559,1755707456808,-843.97594471,0.000247,7]
[380369560,1755707456818,-458.46930693,0.000247,7]
[380369561,1755707456827,-207.4107499,0.000247,2]
[380369562,1755707456837,-14064.0,0.00024767,2]
[380369563,1755707456846,-1500.0,0.00024773,2]
[380369564,1755707456855,-150.0,0.00024774,2]
[380369565,1755707456865,-791.54077658,0.00024775,2]
[380369566,1755707456874,-1008.82647995,0.00024777,2]
[380369567,1755707456884,-1226.11218332,0.00024779,2]
[380369568,1755707456893,-1443.3978867,0.0002478,2]
[380369569,1755707456903,-1660.68359007,0.00024782,2]
[380369570,1755707456913,-1877.96929345,0.00024784,2]
[380369571,1755707456922,-2095.25499682,0.00024785,2]
[380369572,1755707456932,-2312.5407002,0.00024787,2]
[380369573,1755707456941,-2529.82640357,0.00024789,2]
[380369574,1755707456951,-2000.0,0.00024798,2]
[380369575,1755707456964,-150.0,0.00024799,2]
[380369576,1755707456973,-151.0,0.000248,7]
[380369577,1755707456985,-273.064057,0.000248,7]
[380369578,1755707456995,-151.0,0.000248,7]
[380369579,1755707457005,-2200.154561,0.000248,7]
[380369580,1755707457015,-762.161565,0.000248,7]
[380369581,1755707457024,-2200.154561,0.000248,7]
[380369582,1755707457036,-762.161565,0.000248,7]
[380369583,1755707457046,-2200.154561,0.000248,7]
[380369584,1755707457055,-511.845515,0.000248,7]
[380369585,1755707457065,-511.845515,0.000248,7]
[380369586,1755707457075,-218.794615,0.000248,7]
[380369587,1755707457084,-2200.154561,0.000248,7]
[380369588,1755707457093,-151.0,0.000248,7]
[380369589,1755707457103,-511.845515,0.000248,7]
[380369590,1755707457112,-151.0,0.000248,7]
[380369591,1755707457122,-218.794615,0.000248,7]
[380369592,1755707457131,-151.0,0.000248,7]
[380369593,1755707457141,-151.0,0.000248,7]
[380369594,1755707457151,-218.794615,0.000248,7]
[380369595,1755707457160,-151.0,0.000248,7]
[380369596,1755707457170,-151.0,0.000248,7]
[380369597,1755707457179,-218.794615,0.000248,7]
[380369598,1755707457189,-151.0,0.000248,7]
[380369599,1755707457198,-151.0,0.000248,7]
[380369600,1755707457208,-228.471128,0.000248,7]
[380369601,1755707457218,-429.057805,0.000248,7]
[380369602,1755707457228,-762.161565,0.000248,7]
[380369603,1755707457237,-228.471128,0.000248,7]
[380369604,1755707457246,-429.057805,0.000248,7]
[380369605,1755707457256,-762.161565,0.000248,7]
[380369606,1755707457266,-228.471128,0.000248,7]
[380369607,1755707457276,-429.057805,0.000248,7]
[380369608,1755707457286,-511.845515,0.000248,7]
[380369609,1755707457295,-429.057805,0.000248,7]
[380369610,1755707457305,-228.471128,0.000248,7]
[380369611,1755707457315,-258.030876,0.000248,7]
[380369612,1755707457326,-258.030876,0.000248,7]
[380369613,1755707457336,-151.300902,0.000248,7]
[380369614,1755707457346,-258.030876,0.000248,7]
[380369615,1755707457356,-258.030876,0.000248,7]
[380369616,1755707457365,-151.0,0.000248,7]
[380369617,1755707457375,-396.132133,0.000248,7]
[380369618,1755707457385,-151.0,0.000248,7]
[380369619,1755707457395,-396.132133,0.000248,7]
[380369620,1755707457405,-630.957026,0.000248,7]
[380369621,1755707457414,-396.132133,0.000248,7]
[380369622,1755707457424,-630.957026,0.000248,7]
[380369623,1755707457433,-396.132133,0.000248,7]
[380369624,1755707457443,-151.0,0.000248,7]
[380369625,1755707457452,-630.957026,0.000248,7]
[380369626,1755707457461,-151.0,0.000248,7]
[380369627,1755707457470,-630.957026,0.000248,7]
[380369628,1755707457481,-154.229426,0.000248,7]
[380369629,1755707457490,-151.0,0.000248,7]
[380369630,1755707457500,-151.0,0.000248,7]
[380369631,1755707457509,-154.229426,0.000248,7]
[380369632,1755707457518,-182.644118,0.000248,7]
[380369633,1755707457528,-151.0,0.000248,7]
[380369634,1755707457539,-154.229426,0.000248,7]
[380369635,1755707457548,-151.0,0.000248,7]
[380369636,1755707457558,-154.229426,0.000248,7]
[380369637,1755707457567,-249.28694,0.000248,7]
[380369638,1755707457576,-249.28694,0.000248,7]
[380369639,1755707457586,-249.28694,0.000248,7]
[380369640,1755707457595,-249.28694,0.000248,7]
[380369641,1755707457604,-151.0,0.000248,7]
[380369642,1755707457613,-151.0,0.000248,7]
[380369643,1755707457623,-299.855054,0.000248,7]
[380369644,1755707457632,-198.061249,0.000248,7]
[380369645,1755707457641,-299.855054,0.000248,7]
[380369646,1755707457651,-299.855054,0.000248,7]